fUSD/lending_fUSD_20251117
["ID","MTS","AMOUNT","RATE_DAILY","PERIOD"]
[394165820,1763338259109,-239.738273,0.00038,31]
[394165821,1763338259119,-500.0,0.00038082,2]
[394165822,1763338259129,-500.0,0.00038082,2]
[394165823,1763338259139,-500.0,0.00038082,2]
[394165824,1763338259149,-500.0,0.00038082,2]
[394165825,1763338259158,-500.0,0.00038082,2]
[394165826,1763338259167,-1000.0,0.00038082,2]
[394165827,1763338259177,-3990.69,0.00038082,2]
[394165828,1763338259186,-500.0,0.00038082,2]
[394165829,1763338259195,-300.0,0.00038082,2]
[394165830,1763338259204,-1006.13,0.00038082,2]
[394165831,1763338259213,-300.0,0.00038082,2]
[394165832,1763338259223,-500.0,0.00038082,2]
[394165833,1763338259232,-995.65004,0.00038088,30]
[394165834,1763338259241,-170.78481351,0.000381,5]
[394165835,1763338259252,-200.0,0.00038121,2]
[394165836,1763338259261,-200.0,0.00038121,2]
[394165837,1763338259271,-200.0,0.00038121,2]
[394165838,1763338259281,-200.0,0.00038121,2]
[394165839,1763338259290,-1155.91447324,0.000382,120]
[394165840,1763338259300,-151.0,0.00038219,31]
[394165841,1763338259309,-180.672913,0.00038219,31]
[394165842,1763338259318,-180.672913,0.00038219,31]
[394165843,1763338259327,-180.672913,0.00038219,31]
[394165844,1763338259335,-180.672913,0.00038219,31]
[394165845,1763338259345,-151.0,0.00038219,31]
[394165846,1763338259355,-151.0,0.00038219,31]
[394165847,1763338259364,-177.32,0.00038219,2]
[394165848,1763338259373,-177.32,0.00038219,2]
[394165849,1763338259382,-177.32,0.00038219,2]
[394165850,1763338259393,-177.32,0.00038219,2]
[394165851,1763338259402,-150.0,0.00038276,2]
[394165852,1763338259412,-150.0,0.00038276,2]
[394165853,1763338259421,-150.0,0.00038276,2]
[394165854,1763338259431,-150.0,0.00038276,2]
[394165855,1763338259440,-150.0,0.00038276,2]
[394165856,1763338259450,-300.0,0.00038276,2]
[394165857,1763338259459,-150.0,0.00038279,2]
[394165858,1763338259468,-995.65004,0.00038288,30]
[394165859,1763338259478,-150.0,0.00038299,2]
[394165860,1763338259487,-150.0,0.00038299,2]
[394165861,1763338259496,-150.0,0.00038299,2]
[394165862,1763338259506,-150.0,0.00038299,2]
[394165863,1763338259516,-150.0,0.00038299,2]
[394165864,1763338259525,-150.0,0.00038299,2]
[394165865,1763338259535,-150.0,0.00038299,2]
[394165866,1763338259544,-150.0,0.00038299,2]
[394165867,1763338259554,-150.0,0.00038299,2]
[394165868,1763338259563,-150.0,0.00038299,2]
[394165869,1763338259572,-150.0,0.00038299,2]
[394165870,1763338259583,-150.0,0.00038299,2]
[394165871,1763338259593,-150.0,0.00038299,2]
[394165872,1763338259602,-150.0,0.00038299,2]
[394165873,1763338259611,-150.0,0.00038299,2]
[394165874,1763338259620,-787.47,0.000383,30]
[394165875,1763338259630,-168.0,0.00038315,7]
[394165876,1763338259641,-500.77203954,0.00038356,2]
[394165877,1763338259650,-501.68071538,0.00038356,2]
[394165878,1763338259660,-500.79154165,0.00038356,2]
[394165879,1763338259670,-500.79153525,0.00038356,2]
[394165880,1763338259683,-504.2032632,0.00038356,2]
[394165881,1763338259693,-1000.0,0.00038356,2]
[394165882,1763338259702,-3990.69,0.00038356,2]
[394165883,1763338259713,-500.0,0.00038356,2]
[394165884,1763338259723,-300.0,0.00038356,2]
[394165885,1763338259732,-1006.13,0.00038356,2]
[394165886,1763338259742,-300.0,0.00038356,2]
[394165887,1763338259754,-1361.59,0.00038356,120]
[394165888,1763338259764,-500.0,0.00038356,2]
[394165889,1763338259773,-300.0,0.00038356,120]
[394165890,1763338259783,-204.43952516,0.00038356,5]
[394165891,1763338259792,-1361.59,0.00038383,120]
[394165892,1763338259801,-610.98,0.000384,14]
[394165893,1763338259810,-5321.68,0.000384,14]
[394165894,1763338259820,-1361.59,0.0003841,120]
[394165895,1763338259831,-1361.59,0.00038438,120]
[394165896,1763338259840,-175.94451,0.0003844,2]
[394165897,1763338259851,-1361.59,0.00038465,120]
[394165898,1763338259862,-995.65004,0.00038488,30]
[394165899,1763338259872,-1361.59,0.00038493,120]
[394165900,1763338259880,-200.0,0.00038502,2]
[394165901,1763338259889,-200.0,0.00038502,2]
[394165902,1763338259898,-200.0,0.00038502,2]
[394165903,1763338259908,-200.0,0.00038502,2]
[394165904,1763338259917,-1361.59,0.0003852,120]
[394165905,1763338259927,-1361.59,0.00038547,120]
[394165906,1763338259936,-1556.2533384,0.00038562,2]
[394165907,1763338259946,-1361.59,0.00038575,120]
[394165908,1763338259955,-151.0,0.00038591,120]
[394165909,1763338259964,-151.0,0.00038591,120]
[394165910,1763338259973,-165.401043,0.00038591,120]
[394165911,1763338259983,-151.0,0.00038591,30]
[394165912,1763338259992,-151.0,0.00038591,120]
[394165913,1763338260003,-151.0,0.00038591,120]
[394165914,1763338260013,-159.805861,0.00038591,120]
[394165915,1763338260022,-159.805861,0.00038591,120]
[394165916,1763338260032,-159.805861,0.00038591,120]
[394165917,1763338260041,-159.805861,0.00038591,120]
[394165918,1763338260050,-151.0,0.00038591,120]
[394165919,1763338260059,-151.0,0.00038591,120]
[394165920,1763338260068,-151.0,0.00038591,120]
[394165921,1763338260077,-180.793815,0.00038591,120]
[394165922,1763338260087,-264.875628,0.00038602,120]
[394165923,1763338260096,-151.0,0.00038602,120]
[394165924,1763338260106,-1361.59,0.00038602,120]
[394165925,1763338260116,-395.77,0.00038625,60]
[394165926,1763338260126,-1000.0,0.0003863,2]
[394165927,1763338260137,-3990.69,0.0003863,2]
[394165928,1763338260147,-300.0,0.0003863,2]
[394165929,1763338260156,-1006.13,0.0003863,2]
[394165930,1763338260166,-1361.59,0.0003863,120]
[394165931,1763338260176,-1361.59,0.00038657,120]
[394165932,1763338260187,-1361.59,0.00038684,120]
[394165933,1763338260196,-995.65004,0.00038688,30]
[394165934,1763338260206,-5493.0,0.000387,117]
[394165935,1763338260215,-1361.59,0.00038712,120]
[394165936,1763338260226,-17599.16009058,0.00038727,5]
[394165937,1763338260237,-1361.59,0.00038739,120]
[394165938,1763338260247,-1361.59,0.00038767,120]
[394165939,1763338260256,-152.25,0.00038778,120]
[394165940,1763338260266,-155.34,0.00038779,120]
[394165941,1763338260275,-152.61,0.00038785,120]
[394165942,1763338260284,-1361.59,0.00038794,120]
[394165943,1763338260293,-1176.95,0.000388,30]
[394165944,1763338260302,-1361.59,0.00038821,120]
[394165945,1763338260311,-1361.59,0.00038849,120]
[394165946,1763338260320,-1361.59,0.00038876,120]
[394165947,1763338260330,-152.25,0.00038878,120]
[394165948,1763338260339,-155.34,0.00038879,120]
[394165949,1763338260348,-152.61,0.00038885,120]
[394165950,1763338260358,-690.8106549,0.00038903,120]
[394165951,1763338260368,-1000.0,0.00038904,2]
[394165952,1763338260380,-3990.69,0.00038904,2]
[394165953,1763338260390,-300.0,0.00038904,2]
[394165954,1763338260399,-1006.13,0.00038904,2]
[394165955,1763338260408,-1361.59,0.00038904,120]
[394165956,1763338260418,-1361.59,0.00038931,120]
[394165957,1763338260427,-175.94451,0.0003894,2]
[394165958,1763338260438,-205.61296227,0.00038941,7]
[394165959,1763338260447,-1361.59,0.00038958,120]
[394165960,1763338260457,-152.25,0.00038978,120]
[394165961,1763338260466,-155.34,0.00038979,120]
[394165962,1763338260474,-152.61,0.00038985,120]
[394165963,1763338260483,-1361.74799652,0.00038986,120]
[394165964,1763338260492,-166.0,0.00039,30]
[394165965,1763338260503,-160.0,0.00039,2]
[394165966,1763338260513,-415.0,0.00039,30]
[394165967,1763338260522,-1008.17409429,0.00039,7]
[394165968,1763338260532,-290.36226725,0.00039025,30]
[394165969,1763338260541,-1668.765,0.0003903,2]
[394165970,1763338260550,-608.0,0.0003903,2]
[394165971,1763338260559,-1318.0,0.0003903,2]
[394165972,1763338260568,-575.0,0.0003903,2]
[394165973,1763338260579,-821.0,0.0003903,2]
[394165974,1763338260588,-1599.0,0.0003903,2]
[394165975,1763338260597,-1275.0,0.0003903,2]
[394165976,1763338260606,-793.0,0.0003903,2]
[394165977,1763338260615,-907.0,0.0003903,2]
[394165978,1763338260625,-1190.0,0.0003903,2]
[394165979,1763338260634,-3168.79,0.00039031,2]
[394165980,1763338260643,-177.32,0.00039041,2]
[394165981,1763338260653,-177.32,0.00039041,2]
[394165982,1763338260663,-177.32,0.00039041,2]
[394165983,1763338260675,-177.32,0.00039041,2]
[394165984,1763338260686,-177.32,0.00039041,2]
[394165985,1763338260695,-177.32,0.00039041,2]
[394165986,1763338260704,-177.32,0.00039041,2]
[394165987,1763338260715,-177.32,0.00039041,2]
[394165988,1763338260725,-177.32,0.00039041,2]
[394165989,1763338260734,-177.32,0.00039041,2]
[394165990,1763338260745,-152.25,0.00039078,120]
[394165991,1763338260759,-155.34,0.00039079,120]
[394165992,1763338260768,-152.61,0.00039085,120]
[394165993,1763338260778,-995.65004,0.00039088,30]
[394165994,1763338260787,-152.25,0.00039178,120]
[394165995,1763338260797,-1000.0,0.00039178,2]
[394165996,1763338260807,-3990.69,0.00039178,2]
[394165997,1763338260816,-300.0,0.00039178,2]
[394165998,1763338260825,-1006.13,0.00039178,2]
[394165999,1763338260835,-155.34,0.00039179,120]
[394166000,1763338260845,-152.0,0.00039182,7]
[394166001,1763338260855,-152.61,0.00039185,120]
[394166002,1763338260863,-187.47,0.000392,120]
[394166003,1763338260873,-384.0,0.00039267,90]
[394166004,1763338260882,-392.0,0.00039267,90]
[394166005,1763338260891,-152.25,0.00039278,120]
[394166006,1763338260901,-5888.0,0.00039278,2]
[394166007,1763338260911,-155.34,0.00039279,120]
[394166008,1763338260921,-152.61,0.00039285,120]
[394166009,1763338260931,-995.65004,0.00039288,30]
[394166010,1763338260940,-671.0,0.00039346,2]
[394166011,1763338260950,-1502.64,0.00039366,30]
[394166012,1763338260959,-152.25,0.00039378,120]
[394166013,1763338260969,-155.34,0.00039379,120]
[394166014,1763338260978,-387.21,0.00039384,120]
[394166015,1763338261187,-152.61,0.00039385,120]
[394166016,1763338261197,-1155.91447324,0.000394,120]
[394166017,1763338261207,-787.47,0.000394,30]
[394166018,1763338261217,-5321.68,0.000394,14]
[394166019,1763338261226,-4885.8201481,0.0003943,30]
[394166020,1763338261235,-978.11825184,0.00039448,2]
[394166021,1763338261245,-1000.0,0.00039452,2]
[394166022,1763338261256,-3990.69,0.00039452,2]
[394166023,1763338261265,-254.4,0.00039452,2]
[394166024,1763338261274,-1006.13,0.00039452,2]
[394166025,1763338261284,-168.0,0.00039477,120]
[394166026,1763338261293,-168.0,0.00039477,120]
[394166027,1763338261303,-152.25,0.00039478,120]
[394166028,1763338261312,-155.34,0.00039479,120]
[394166029,1763338261321,-152.61,0.00039485,120]
[394166030,1763338261331,-995.65004,0.00039488,30]
[394166031,1763338261340,-610.98,0.000395,14]
[394166032,1763338261350,-293.0,0.00039507,120]
[394166033,1763338261359,-168.0,0.00039552,2]
[394166034,1763338261369,-151.0,0.00039567,120]
[394166035,1763338261378,-160.964689,0.00039567,120]
[394166036,1763338261387,-151.0,0.00039567,120]
[394166037,1763338261396,-151.0,0.00039567,120]
[394166038,1763338261405,-152.25,0.00039578,120]
[394166039,1763338261415,-232.04716206,0.00039578,2]
[394166040,1763338261425,-155.34,0.00039579,120]
[394166041,1763338261434,-152.61,0.00039585,120]
[394166042,1763338261443,-631.0111034,0.000396,120]
[394166043,1763338261453,-150.0,0.00039648,120]
[394166044,1763338261463,-1932.19924207,0.0003965,2]
[394166045,1763338261472,-553.72,0.00039654,2]
[394166046,1763338261481,-152.25,0.00039678,120]
[394166047,1763338261491,-155.34,0.00039679,120]
[394166048,1763338261502,-152.61,0.00039685,120]
[394166049,1763338261512,-995.65004,0.00039688,30]
[394166050,1763338261522,-154.753151,0.000397,60]
[394166051,1763338261531,-423.506356,0.000397,120]
[394166052,1763338261540,-151.0,0.000397,120]
[394166053,1763338261549,-423.506356,0.000397,120]
[394166054,1763338261559,-423.506356,0.000397,120]
[394166055,1763338261569,-423.506356,0.000397,120]
[394166056,1763338261578,-151.0,0.000397,120]
[394166057,1763338261587,-151.0,0.000397,120]
[394166058,1763338261596,-151.0,0.000397,120]
[394166059,1763338261606,-151.0,0.000397,120]
[394166060,1763338261616,-151.0,0.000397,120]
[394166061,1763338261625,-151.0,0.000397,120]
[394166062,1763338261634,-151.0,0.000397,120]
[394166063,1763338261643,-151.0,0.000397,120]
[394166064,1763338261653,-151.0,0.000397,10]
[394166065,1763338261662,-293.927612,0.000397,120]
[394166066,1763338261676,-151.0,0.000397,10]
[394166067,1763338261690,-162.688325,0.000397,30]
[394166068,1763338261700,-165.064262,0.000397,90]
[394166069,1763338261709,-165.064262,0.000397,90]
[394166070,1763338261719,-1350.260439,0.000397,28]
[394166071,1763338261728,-165.064262,0.000397,90]
[394166072,1763338261738,-1350.260439,0.000397,28]
[394166073,1763338261747,-165.064262,0.000397,90]
[394166074,1763338261758,-1350.260439,0.000397,28]
[394166075,1763338261768,-1350.260439,0.000397,28]
[394166076,1763338261777,-151.0,0.000397,120]
[394166077,1763338261787,-151.000037,0.000397,120]
[394166078,1763338261796,-151.0,0.000397,120]
[394166079,1763338261806,-170.826332,0.000397,120]
[394166080,1763338261816,-151.0,0.000397,120]
[394166081,1763338261825,-196.558637,0.000397,120]
[394166082,1763338261835,-151.0,0.000397,120]
[394166083,1763338261845,-151.0,0.000397,120]
[394166084,1763338261854,-158.77126426,0.000397,120]
[394166085,1763338261864,-158.77126426,0.000397,120]
[394166086,1763338261873,-158.77126426,0.000397,120]
[394166087,1763338261883,-158.77126426,0.000397,120]
[394166088,1763338261893,-158.77126426,0.000397,120]
[394166089,1763338261903,-158.77126426,0.000397,120]
[394166090,1763338261913,-158.77126426,0.000397,120]
[394166091,1763338261922,-158.77126426,0.000397,120]
[394166092,1763338261931,-158.77,0.000397,120]
[394166093,1763338261940,-166.70982748,0.000397,120]
[394166094,1763338261950,-166.70982748,0.000397,120]
[394166095,1763338261960,-166.70982748,0.000397,120]
[394166096,1763338261969,-166.70982748,0.000397,120]
[394166097,1763338261978,-166.70982748,0.000397,120]
[394166098,1763338261987,-166.70982748,0.000397,120]
[394166099,1763338261997,-166.70982748,0.000397,120]
[394166100,1763338262008,-166.70982748,0.000397,120]
[394166101,1763338262018,-166.70982748,0.000397,120]
[394166102,1763338262028,-166.70982748,0.000397,120]
[394166103,1763338262037,-166.70982748,0.000397,120]
[394166104,1763338262047,-166.70982748,0.000397,120]
[394166105,1763338262057,-166.70982748,0.000397,120]
[394166106,1763338262066,-166.70982748,0.000397,120]
[394166107,1763338262076,-166.70982748,0.000397,120]
[394166108,1763338262086,-166.70982748,0.000397,120]
[394166109,1763338262095,-29051.93641551,0.000397,2]
[394166110,1763338262105,-2237.266,0.0003971,2]
[394166111,1763338262115,-1604.0,0.0003971,2]
[394166112,1763338262125,-560.0,0.0003971,2]
[394166113,1763338262134,-1039.65425569,0.00039726,2]
[394166114,1763338262144,-3990.69,0.00039726,2]
[394166115,1763338262154,-1006.13,0.00039726,2]
[394166116,1763338262163,-152.25,0.00039778,120]
[394166117,1763338262173,-155.34,0.00039779,120]
[394166118,1763338262183,-152.61,0.00039785,120]
[394166119,1763338262193,-300.0,0.00039799,10]
[394166120,1763338262202,-1051568.61550633,0.000398,7]
[394166121,1763338262212,-167.77666526,0.000398,120]
[394166122,1763338262221,-151.0,0.000398,120]
[394166123,1763338262231,-253.441526,0.000398,120]
[394166124,1763338262240,-151.0,0.000398,120]
[394166125,1763338262250,-151.0,0.000398,120]
[394166126,1763338262259,-151.0,0.000398,120]
[394166127,1763338262268,-284.222104,0.000398,120]
[394166128,1763338262278,-151.0,0.000398,120]
[394166129,1763338262286,-282.783001,0.000398,120]
[394166130,1763338262295,-154.401262,0.000398,120]
[394166131,1763338262305,-151.0,0.000398,120]
[394166132,1763338262315,-151.0,0.000398,120]
[394166133,1763338262326,-180.672913,0.000398,120]
[394166134,1763338262336,-180.672913,0.000398,120]
[394166135,1763338262346,-180.672913,0.000398,120]
[394166136,1763338262355,-180.672913,0.000398,120]
[394166137,1763338262364,-151.0,0.000398,120]
[394166138,1763338262374,-282.040686,0.000398,120]
[394166139,1763338262383,-151.0,0.000398,120]
[394166140,1763338262393,-151.0,0.000398,120]
[394166141,1763338262402,-151.0,0.000398,120]
[394166142,1763338262412,-151.0,0.000398,120]
[394166143,1763338262421,-151.0,0.000398,120]
[394166144,1763338262430,-269.832179,0.000398,120]
[394166145,1763338262440,-151.0,0.000398,120]
[394166146,1763338262450,-151.0,0.000398,120]
[394166147,1763338262459,-151.0,0.000398,120]
[394166148,1763338262468,-151.0,0.000398,120]
[394166149,1763338262478,-151.0,0.000398,120]
[394166150,1763338262488,-151.0,0.000398,120]
[394166151,1763338262499,-151.0,0.000398,120]
[394166152,1763338262509,-151.0,0.000398,120]
[394166153,1763338262519,-151.0,0.000398,120]
[394166154,1763338262529,-159.805861,0.000398,120]
[394166155,1763338262539,-159.805861,0.000398,120]
[394166156,1763338262548,-159.805861,0.000398,120]
[394166157,1763338262558,-159.805865,0.000398,120]
[394166158,1763338262568,-151.0,0.000398,120]
[394166159,1763338262578,-151.0,0.000398,120]
[394166160,1763338262587,-151.0,0.000398,120]
[394166161,1763338262596,-244.604031,0.000398,120]
[394166162,1763338262606,-244.604031,0.000398,120]
[394166163,1763338262616,-244.604031,0.000398,120]
[394166164,1763338262626,-244.604034,0.000398,120]
[394166165,1763338262635,-151.0,0.000398,120]
[394166166,1763338262647,-151.0,0.000398,120]
[394166167,1763338262656,-151.0,0.000398,120]
[394166168,1763338262665,-151.0,0.000398,120]
[394166169,1763338262677,-151.0,0.000398,120]
[394166170,1763338262687,-365.1992,0.000398,120]
[394166171,1763338262696,-181.556921,0.000398,120]
[394166172,1763338262705,-365.1992,0.000398,120]
[394166173,1763338262715,-365.1992,0.000398,120]
[394166174,1763338262724,-365.199196,0.000398,120]
[394166175,1763338262734,-151.0,0.000398,120]
[394166176,1763338262743,-151.0,0.000398,120]
[394166177,1763338262755,-157.055438,0.000398,120]
[394166178,1763338262765,-201.350748,0.000398,15]
[394166179,1763338262775,-151.0,0.000398,120]
[394166180,1763338262784,-151.0,0.000398,120]
[394166181,1763338262794,-201.350748,0.000398,15]
[394166182,1763338262804,-200.885929,0.000398,120]
[394166183,1763338262813,-201.350748,0.000398,15]
[394166184,1763338262822,-201.350757,0.000398,15]
[394166185,1763338262832,-151.0,0.000398,120]
[394166186,1763338262841,-151.0,0.000398,120]
[394166187,1763338262850,-151.0,0.000398,120]
[394166188,1763338262859,-423.506356,0.000398,120]
[394166189,1763338262867,-151.0,0.000398,120]
[394166190,1763338262877,-423.506356,0.000398,120]
[394166191,1763338262887,-423.506356,0.000398,120]
[394166192,1763338262895,-423.506356,0.000398,120]
[394166193,1763338262904,-151.0,0.000398,120]
[394166194,1763338262912,-151.0,0.000398,120]
[394166195,1763338262921,-151.0,0.000398,120]
[394166196,1763338262930,-151.0,0.000398,120]
[394166197,1763338262939,-151.0,0.000398,120]
[394166198,1763338262947,-151.0,0.000398,120]
[394166199,1763338262955,-151.0,0.000398,120]
[394166200,1763338262964,-173.711997,0.000398,120]
[394166201,1763338262973,-151.0,0.000398,10]
[394166202,1763338262982,-151.0,0.000398,10]
[394166203,1763338262991,-165.064262,0.000398,90]
[394166204,1763338263004,-165.064262,0.000398,90]
[394166205,1763338263014,-1350.260439,0.000398,28]
[394166206,1763338263023,-165.064262,0.000398,90]
[394166207,1763338263032,-1350.260439,0.000398,28]
[394166208,1763338263042,-165.064262,0.000398,90]
[394166209,1763338263052,-1350.260439,0.000398,28]
[394166210,1763338263061,-1350.260439,0.000398,28]
[394166211,1763338263071,-151.0,0.000398,120]
[394166212,1763338263081,-151.0,0.000398,120]
[394166213,1763338263091,-151.0,0.000398,120]
[394166214,1763338263100,-151.0,0.000398,120]
[394166215,1763338263109,-151.0,0.000398,120]
[394166216,1763338263119,-774.198032,0.000398,120]
[394166217,1763338263128,-774.198032,0.000398,120]
[394166218,1763338263137,-774.198032,0.000398,120]
[394166219,1763338263147,-774.198032,0.000398,120]
[394166220,1763338263156,-151.0,0.000398,120]
[394166221,1763338263166,-1356.593843,0.000398,120]
[394166222,1763338263176,-1356.593843,0.000398,120]
[394166223,1763338263185,-151.0,0.000398,120]
[394166224,1763338263196,-151.0,0.000398,120]
[394166225,1763338263206,-1356.593843,0.000398,120]
[394166226,1763338263216,-1356.593843,0.000398,120]
[394166227,1763338263225,-207.260721,0.000398,120]
[394166228,1763338263235,-207.260721,0.000398,120]
[394166229,1763338263245,-207.260721,0.000398,120]
[394166230,1763338263256,-207.260721,0.000398,120]
[394166231,1763338263266,-151.0,0.000398,120]
[394166232,1763338263275,-911.058845,0.000398,120]
[394166233,1763338263285,-911.058845,0.000398,120]
[394166234,1763338263294,-151.0,0.000398,120]
[394166235,1763338263304,-911.058845,0.000398,120]
[394166236,1763338263313,-911.058845,0.000398,120]
[394166237,1763338263323,-151.0,0.000398,120]
[394166238,1763338263332,-200.682507,0.000398,120]
[394166239,1763338263343,-200.682507,0.000398,120]
[394166240,1763338263353,-200.682507,0.000398,120]
[394166241,1763338263363,-200.682507,0.000398,120]
[394166242,1763338263374,-151.0,0.000398,120]
[394166243,1763338263384,-151.0,0.000398,120]
[394166244,1763338263394,-151.0,0.000398,120]
[394166245,1763338263404,-151.0,0.000398,120]
[394166246,1763338263414,-151.0,0.000398,120]
[394166247,1763338263424,-151.0,0.000398,120]
[394166248,1763338263434,-331.436966,0.000398,120]
[394166249,1763338263444,-151.0,0.000398,120]
[394166250,1763338263454,-331.436966,0.000398,120]
[394166251,1763338263464,-331.436966,0.000398,120]
[394166252,1763338263473,-331.436966,0.000398,120]
[394166253,1763338263483,-225.205601,0.000398,60]
[394166254,1763338263492,-151.0,0.000398,120]
[394166255,1763338263503,-198.244511,0.000398,120]
[394166256,1763338263513,-151.0,0.000398,120]
[394166257,1763338263523,-198.244511,0.000398,120]
[394166258,1763338263532,-198.244511,0.000398,120]
[394166259,1763338263543,-198.244511,0.000398,120]
[394166260,1763338263552,-151.0,0.000398,120]
[394166261,1763338263562,-151.0,0.000398,120]
[394166262,1763338263571,-151.0,0.000398,120]
[394166263,1763338263581,-151.0,0.000398,120]
[394166264,1763338263591,-151.0,0.000398,120]
[394166265,1763338263601,-151.0,0.000398,120]
[394166266,1763338263610,-229.113956,0.000398,120]
[394166267,1763338263623,-151.0,0.000398,120]
[394166268,1763338263632,-151.0,0.000398,120]
[394166269,1763338263642,-151.0,0.000398,120]
[394166270,1763338263652,-151.0,0.000398,120]
[394166271,1763338263661,-151.0,0.000398,120]
[394166272,1763338263671,-151.0,0.000398,120]
[394166273,1763338263686,-151.0,0.000398,120]
[394166274,1763338263695,-151.0,0.000398,120]
[394166275,1763338263705,-170.778959,0.000398,120]
[394166276,1763338263715,-151.0,0.000398,120]
[394166277,1763338263724,-161.418491,0.000398,120]
[394166278,1763338263733,-320.063734,0.000398,120]
[394166279,1763338263742,-320.063734,0.000398,120]
[394166280,1763338263754,-151.0,0.000398,120]
[394166281,1763338263764,-320.063734,0.000398,120]
[394166282,1763338263774,-151.0,0.000398,120]
[394166283,1763338263784,-320.063734,0.000398,120]
[394166284,1763338263793,-151.0,0.000398,120]
[394166285,1763338263802,-526.139129,0.000398,120]
[394166286,1763338263812,-526.139129,0.000398,120]
[394166287,1763338263821,-526.139129,0.000398,120]
[394166288,1763338263830,-151.0,0.000398,120]
[394166289,1763338263839,-526.139129,0.000398,120]
[394166290,1763338263849,-151.0,0.000398,120]
[394166291,1763338263858,-151.0,0.000398,120]
[394166292,1763338263867,-991.526894,0.000398,30]
[394166293,1763338263876,-151.0,0.000398,120]
[394166294,1763338263887,-991.526894,0.000398,30]
[394166295,1763338263899,-280.790532,0.000398,120]
[394166296,1763338263908,-151.0,0.000398,120]
[394166297,1763338263918,-991.526894,0.000398,30]
[394166298,1763338263927,-280.790532,0.000398,120]
[394166299,1763338263937,-151.0,0.000398,120]
[394166300,1763338263946,-991.526894,0.000398,30]
[394166301,1763338263956,-280.790532,0.000398,120]
[394166302,1763338263966,-280.790532,0.000398,120]
[394166303,1763338263975,-161.544794,0.000398,120]
[394166304,1763338263984,-252.113073,0.000398,120]
[394166305,1763338263993,-161.544794,0.000398,120]
[394166306,1763338264003,-252.113073,0.000398,120]
[394166307,1763338264013,-161.544794,0.000398,120]
[394166308,1763338264022,-252.113073,0.000398,120]
[394166309,1763338264031,-161.544794,0.000398,120]
[394166310,1763338264041,-252.113073,0.000398,120]
[394166311,1763338264050,-151.0,0.000398,120]
[394166312,1763338264060,-151.0,0.000398,120]
[394166313,1763338264069,-151.0,0.000398,120]
[394166314,1763338264078,-151.0,0.000398,120]
[394166315,1763338264087,-151.0,0.000398,120]
[394166316,1763338264096,-151.0,0.000398,120]
[394166317,1763338264105,-152.931965,0.000398,120]
[394166318,1763338264115,-151.0,0.000398,120]
[394166319,1763338264124,-151.0,0.000398,120]